[Event "*** Titled Tuesday Blitz"]
[Site "Chess.com"]
[Date "2020.05.12"]
[Round "6"]
[White "Anton_Demchenko"]
[Black "StockholmMissile"]
[Result "1-0"]
[WhiteElo "2813"]
[BlackElo "2445"]
[TimeControl "180+1"]
[EndTime "11:06:44 PDT"]
[Termination "Anton_Demchenko won by resignation"]

1. d4 {[%clk 0:03:00.9]} 1... d5 {[%clk 0:02:59.1]} 2. Nf3 {[%clk 0:03:01.8]}
2... Nf6 {[%clk 0:02:58.5]} 3. Bf4 {[%clk 0:03:02.1]} 3... c5 {[%clk 0:02:57.1]}
4. e3 {[%clk 0:03:02.4]} 4... Nc6 {[%clk 0:02:56.1]} 5. Nbd2 {[%clk 0:03:02.2]}
5... e6 {[%clk 0:02:55.5]} 6. c3 {[%clk 0:03:02.1]} 6... Be7 {[%clk 0:02:55.6]}
7. Ne5 {[%clk 0:03:01.5]} 7... Nxe5 {[%clk 0:02:50.3]} 8. dxe5 {[%clk
0:03:02.4]} 8... Nd7 {[%clk 0:02:49.8]} 9. h4 {[%clk 0:03:03]} 9... b6 {[%clk
0:02:46.8]} 10. Qg4 {[%clk 0:02:59.7]} 10... g6 {[%clk 0:02:32.6]} 11. h5 {[%clk
0:02:59.8]} 11... g5 {[%clk 0:02:32.5]} 12. Bg3 {[%clk 0:02:55.6]} 12... Qc7
{[%clk 0:02:25.7]} 13. Nf3 {[%clk 0:02:38.5]} 13... h6 {[%clk 0:02:23]} 14. c4
{[%clk 0:02:34.5]} 14... Bb7 {[%clk 0:02:18.5]} 15. cxd5 {[%clk 0:02:23.9]}
15... Bxd5 {[%clk 0:02:19.4]} 16. Qa4 {[%clk 0:01:50.2]} 16... O-O {[%clk
0:01:40.8]} 17. Be2 {[%clk 0:01:46.6]} 17... Rfd8 {[%clk 0:01:40.2]} 18. O-O
{[%clk 0:01:44.2]} 18... Nf8 {[%clk 0:01:32.8]} 19. Rfd1 {[%clk 0:01:41.9]}
19... Bc6 {[%clk 0:01:29.9]} 20. Bb5 {[%clk 0:01:32.2]} 20... Bxb5 {[%clk
0:01:14.7]} 21. Qxb5 {[%clk 0:01:33.1]} 21... Rxd1+ {[%clk 0:01:14.5]} 22. Rxd1
{[%clk 0:01:33.6]} 22... Rd8 {[%clk 0:01:15.1]} 23. Rc1 {[%clk 0:01:34.2]} 23...
Qd7 {[%clk 0:01:10.9]} 24. Qa6 {[%clk 0:01:34.3]} 24... Qc7 {[%clk 0:00:59]} 25.
Nh2 {[%clk 0:01:33.2]} 25... Rd2 {[%clk 0:00:40.5]} 26. Ng4 {[%clk 0:01:26.2]}
26... Kg7 {[%clk 0:00:40.5]} 27. Rb1 {[%clk 0:01:08.1]} 27... Nd7 {[%clk
0:00:30.7]} 28. Qc4 {[%clk 0:00:46.3]} 28... Nb8 {[%clk 0:00:25.4]} 29. Nf6
{[%clk 0:00:36.5]} 29... Qd8 {[%clk 0:00:24.1]} 30. Kh2 {[%clk 0:00:24]} 30...
Nc6 {[%clk 0:00:17.4]} 31. Qe4 {[%clk 0:00:20.4]} 31... Nxe5 {[%clk 0:00:14.6]}
32. Qh7+ {[%clk 0:00:12]} 32... Kxf6 {[%clk 0:00:14.9]} 33. Qxh6+ {[%clk
0:00:12.6]} 33... Kf5 {[%clk 0:00:15]} 34. e4+ {[%clk 0:00:10.2]} 34... Kxe4
{[%clk 0:00:08.3]} 35. Re1+ {[%clk 0:00:09.4]} 35... Kd3 {[%clk 0:00:08.6]} 36.
Rxe5 {[%clk 0:00:05.7]} 36... Kc4 {[%clk 0:00:08.1]} 37. Qh7 {[%clk 0:00:05.3]}
37... Kb5 {[%clk 0:00:05.6]} 38. Qxf7 {[%clk 0:00:04.7]} 38... Ka6 {[%clk
0:00:04.6]} 39. Qxe6 {[%clk 0:00:04.8]} 39... Bd6 {[%clk 0:00:04.4]} 40. Re3
{[%clk 0:00:03.7]} 40... Bxg3+ {[%clk 0:00:04.3]} 41. fxg3 {[%clk 0:00:04.6]}
41... Rd3 {[%clk 0:00:03.7]} 42. Qc4+ {[%clk 0:00:04.6]} 42... Kb7 {[%clk
0:00:03.2]} 43. Qxd3 {[%clk 0:00:05.5]} 1-0

[Event "*** Titled Tuesday Blitz"]
[Site "Chess.com"]
[Date "2020.05.12"]
[Round "6"]
[White "DDTerziev04"]
[Black "CraiggoryC"]
[Result "0-1"]
[WhiteElo "2262"]
[BlackElo "2120"]
[TimeControl "180+1"]
[EndTime "11:06:44 PDT"]
[Termination "CraiggoryC won on time"]

1. e4 {[%clk 0:03:00.9]} 1... e6 {[%clk 0:02:59.8]} 2. d4 {[%clk 0:03:00.1]}
2... d5 {[%clk 0:02:59.7]} 3. e5 {[%clk 0:03:00.6]} 3... c5 {[%clk 0:02:59.4]}
4. c3 {[%clk 0:03:00.5]} 4... Qb6 {[%clk 0:02:59.8]} 5. Nf3 {[%clk 0:02:56.4]}
5... Nc6 {[%clk 0:03:00.1]} 6. Bd3 {[%clk 0:02:50]} 6... cxd4 {[%clk 0:02:59.3]}
7. cxd4 {[%clk 0:02:49.3]} 7... Bd7 {[%clk 0:02:59.8]} 8. O-O {[%clk 0:02:48.6]}
8... Nxd4 {[%clk 0:03:00.2]} 9. Nxd4 {[%clk 0:02:48.1]} 9... Qxd4 {[%clk
0:03:00.7]} 10. Nc3 {[%clk 0:02:44.8]} 10... a6 {[%clk 0:03:00.3]} 11. Be3
{[%clk 0:02:21]} 11... Qxe5 {[%clk 0:02:59.5]} 12. Re1 {[%clk 0:02:20]} 12...
Nf6 {[%clk 0:02:41.4]} 13. a4 {[%clk 0:02:05.8]} 13... Bb4 {[%clk 0:02:12.5]}
14. Bc5 {[%clk 0:02:03]} 14... Qxe1+ {[%clk 0:02:01.5]} 15. Qxe1 {[%clk
0:02:01.5]} 15... Bxc5 {[%clk 0:02:02.4]} 16. Rd1 {[%clk 0:01:59]} 16... O-O
{[%clk 0:02:00.5]} 17. Qe2 {[%clk 0:01:55.5]} 17... Rac8 {[%clk 0:01:52.3]} 18.
Bc2 {[%clk 0:01:47.7]} 18... Bb4 {[%clk 0:01:44.9]} 19. Qd3 {[%clk 0:01:41.9]}
19... Rc4 {[%clk 0:01:32.7]} 20. h3 {[%clk 0:01:21.1]} 20... Rfc8 {[%clk
0:01:27.4]} 21. g4 {[%clk 0:01:08.9]} 21... Bxc3 {[%clk 0:01:18]} 22. g5 {[%clk
0:00:48.7]} 22... Ne4 {[%clk 0:01:07.6]} 23. Bb3 {[%clk 0:00:39.9]} 23... Rd4
{[%clk 0:00:55.8]} 24. Qe2 {[%clk 0:00:31.2]} 24... Rxd1+ {[%clk 0:00:47.8]} 25.
Qxd1 {[%clk 0:00:32.1]} 25... Bxb2 {[%clk 0:00:41.1]} 26. Kg2 {[%clk 0:00:31.8]}
26... Nxg5 {[%clk 0:00:29.1]} 27. f3 {[%clk 0:00:22.7]} 27... Bf6 {[%clk
0:00:17.8]} 28. h4 {[%clk 0:00:19.8]} 28... d4 {[%clk 0:00:14.2]} 29. hxg5
{[%clk 0:00:19.6]} 29... Bxg5 {[%clk 0:00:14]} 30. Qxd4 {[%clk 0:00:19.3]} 30...
Bc6 {[%clk 0:00:13]} 31. Qd3 {[%clk 0:00:13.3]} 31... Rd8 {[%clk 0:00:11.4]} 32.
Qc3 {[%clk 0:00:11.3]} 32... Bd2 {[%clk 0:00:10.1]} 33. Qc2 {[%clk 0:00:09.4]}
33... Bh6 {[%clk 0:00:08.5]} 34. Qc3 {[%clk 0:00:08]} 34... g6 {[%clk
0:00:07.8]} 35. Bc2 {[%clk 0:00:05.3]} 35... Rd2+ {[%clk 0:00:06.4]} 36. Kg3
{[%clk 0:00:04.6]} 36... Rd5 {[%clk 0:00:05.1]} 37. Kg2 {[%clk 0:00:03.1]} 37...
Rd2+ {[%clk 0:00:03.9]} 38. Kg3 {[%clk 0:00:01.5]} 38... Rd5 {[%clk 0:00:04.4]}
39. Kg2 {[%clk 0:00:01.9]} 39... Rg5+ {[%clk 0:00:04]} 40. Kf2 {[%clk
0:00:02.2]} 40... Rh5 {[%clk 0:00:03.5]} 41. Kg2 {[%clk 0:00:02.2]} 41... Rd5
{[%clk 0:00:02.6]} 42. Kg3 {[%clk 0:00:01.9]} 42... Bd2 {[%clk 0:00:02.8]} 43.
Qb3 {[%clk 0:00:01.6]} 43... Kg7 {[%clk 0:00:03]} 44. Be4 {[%clk 0:00:01.6]}
44... Rd4 {[%clk 0:00:01.9]} 0-1

[Event "*** Titled Tuesday Blitz"]
[Site "Chess.com"]
[Date "2020.05.12"]
[Round "6"]
[White "BAS8892"]
[Black "Gergo85"]
[Result "1-0"]
[WhiteElo "2721"]
[BlackElo "2514"]
[TimeControl "180+1"]
[EndTime "11:06:45 PDT"]
[Termination "BAS8892 won by resignation"]

1. d4 {[%clk 0:03:00.9]} 1... d5 {[%clk 0:02:59.7]} 2. c4 {[%clk 0:03:00.7]}
2... dxc4 {[%clk 0:03:00.6]} 3. e4 {[%clk 0:02:59.4]} 3... e5 {[%clk 0:03:00.6]}
4. Nf3 {[%clk 0:02:58.9]} 4... exd4 {[%clk 0:02:58.2]} 5. Bxc4 {[%clk
0:02:58.3]} 5... Nc6 {[%clk 0:02:58.8]} 6. O-O {[%clk 0:02:58.3]} 6... Bc5
{[%clk 0:02:59.4]} 7. Nbd2 {[%clk 0:02:48.7]} 7... Bb6 {[%clk 0:02:56]} 8. b4
{[%clk 0:02:41]} 8... a6 {[%clk 0:02:46.4]} 9. Nb3 {[%clk 0:02:33.2]} 9... Nh6
{[%clk 0:02:01.1]} 10. h3 {[%clk 0:02:28.7]} 10... O-O {[%clk 0:01:55.8]} 11. a3
{[%clk 0:02:18]} 11... Be6 {[%clk 0:01:44.9]} 12. Qd3 {[%clk 0:02:08.2]} 12...
Bxc4 {[%clk 0:01:31]} 13. Qxc4 {[%clk 0:02:07.7]} 13... Qf6 {[%clk 0:01:17.4]}
14. Bb2 {[%clk 0:01:58.9]} 14... Rad8 {[%clk 0:01:07.8]} 15. Rad1 {[%clk
0:01:57.6]} 15... Qg6 {[%clk 0:01:01.7]} 16. Rfe1 {[%clk 0:01:50.7]} 16... Qe6
{[%clk 0:01:02.2]} 17. Qxe6 {[%clk 0:01:29.1]} 17... fxe6 {[%clk 0:01:03.1]} 18.
Nbxd4 {[%clk 0:01:28.7]} 18... Nxd4 {[%clk 0:00:53]} 19. Bxd4 {[%clk 0:01:27.9]}
19... Rxf3 {[%clk 0:00:17.6]} 20. Bxb6 {[%clk 0:01:27.2]} 20... Rfd3 {[%clk
0:00:18.1]} 21. Rxd3 {[%clk 0:01:13.5]} 21... Rxd3 {[%clk 0:00:19]} 22. Bxc7
{[%clk 0:01:09]} 22... Rxa3 {[%clk 0:00:19.5]} 23. Rd1 {[%clk 0:01:01.8]} 23...
Nf7 {[%clk 0:00:20.1]} 24. Rd7 {[%clk 0:01:00.6]} 24... Rb3 {[%clk 0:00:20.3]}
25. Ba5 {[%clk 0:00:51.8]} 25... b6 {[%clk 0:00:19.8]} 26. Bxb6 {[%clk
0:00:50.6]} 26... Rxb4 {[%clk 0:00:20.2]} 27. Be3 {[%clk 0:00:47.5]} 27... Rxe4
{[%clk 0:00:20.5]} 28. Ra7 {[%clk 0:00:46]} 28... Ne5 {[%clk 0:00:20.3]} 29.
Rxa6 {[%clk 0:00:42.5]} 29... Ng6 {[%clk 0:00:18.2]} 30. Ra7 {[%clk 0:00:40.6]}
30... Rc4 {[%clk 0:00:17.1]} 31. g3 {[%clk 0:00:36.1]} 31... Nf8 {[%clk
0:00:13.7]} 32. Kg2 {[%clk 0:00:33]} 32... Rb4 {[%clk 0:00:12.6]} 33. h4 {[%clk
0:00:29.1]} 33... Rc4 {[%clk 0:00:11.9]} 34. h5 {[%clk 0:00:28.1]} 34... h6
{[%clk 0:00:11.9]} 35. Bf4 {[%clk 0:00:23.3]} 35... Rd4 {[%clk 0:00:11.8]} 36.
Rxg7+ {[%clk 0:00:21]} 36... Kxg7 {[%clk 0:00:12.3]} 37. Be5+ {[%clk 0:00:21]}
37... Kf7 {[%clk 0:00:12.7]} 38. Bxd4 {[%clk 0:00:21.3]} 38... Nd7 {[%clk
0:00:12.8]} 39. f4 {[%clk 0:00:20]} 39... Nb8 {[%clk 0:00:11.1]} 40. Kf3 {[%clk
0:00:18.5]} 40... Nc6 {[%clk 0:00:11.6]} 41. Be5 {[%clk 0:00:18.2]} 41... Ne7
{[%clk 0:00:12.2]} 42. g4 {[%clk 0:00:18]} 42... Nd5 {[%clk 0:00:12.8]} 43. g5
{[%clk 0:00:17.4]} 43... hxg5 {[%clk 0:00:11.5]} 44. fxg5 {[%clk 0:00:17.4]}
44... Ne7 {[%clk 0:00:12.4]} 45. Kg4 {[%clk 0:00:15.5]} 45... Nc6 {[%clk
0:00:10.1]} 46. g6+ {[%clk 0:00:13.5]} 46... Kg8 {[%clk 0:00:09.9]} 47. Bf6
{[%clk 0:00:12.1]} 47... Nb4 {[%clk 0:00:10.4]} 48. h6 {[%clk 0:00:11.4]} 48...
Nd5 {[%clk 0:00:10.9]} 49. h7+ {[%clk 0:00:11.6]} 1-0

[Event "*** Titled Tuesday Blitz"]
[Site "Chess.com"]
[Date "2020.05.12"]
[Round "6"]
[White "Zq1"]
[Black "manmanlai1"]
[Result "1/2-1/2"]
[WhiteElo "2533"]
[BlackElo "2334"]
[TimeControl "180+1"]
[EndTime "11:06:46 PDT"]
[Termination "Game drawn by repetition"]

1. d4 {[%clk 0:03:00.9]} 1... d5 {[%clk 0:02:59.3]} 2. c4 {[%clk 0:03:01]} 2...
e6 {[%clk 0:02:59.8]} 3. Nc3 {[%clk 0:03:00.5]} 3... Bb4 {[%clk 0:02:59.5]} 4.
a3 {[%clk 0:02:58.8]} 4... Bxc3+ {[%clk 0:02:59.7]} 5. bxc3 {[%clk 0:02:59.4]}
5... c6 {[%clk 0:03:00.2]} 6. e3 {[%clk 0:02:59.5]} 6... b6 {[%clk 0:02:58.4]}
7. Nf3 {[%clk 0:02:59.3]} 7... Ba6 {[%clk 0:02:55.8]} 8. cxd5 {[%clk 0:02:55.9]}
8... Bxf1 {[%clk 0:02:55.3]} 9. Kxf1 {[%clk 0:02:55.6]} 9... cxd5 {[%clk
0:02:55.5]} 10. c4 {[%clk 0:02:50]} 10... Nf6 {[%clk 0:02:50.3]} 11. g3 {[%clk
0:02:45.8]} 11... O-O {[%clk 0:02:43.6]} 12. cxd5 {[%clk 0:02:44.2]} 12... Qxd5
{[%clk 0:02:43.9]} 13. Kg2 {[%clk 0:02:44.3]} 13... Nc6 {[%clk 0:02:41.3]} 14.
Qe2 {[%clk 0:02:42.2]} 14... Na5 {[%clk 0:02:38.6]} 15. Re1 {[%clk 0:02:32.2]}
15... Ne4 {[%clk 0:02:35.9]} 16. Bb2 {[%clk 0:02:21.3]} 16... Rac8 {[%clk
0:02:31.8]} 17. Kg1 {[%clk 0:02:13.4]} 17... Nc4 {[%clk 0:02:27]} 18. Ne5 {[%clk
0:01:47.8]} 18... Nxb2 {[%clk 0:01:58.7]} 19. Qxb2 {[%clk 0:01:46.5]} 19... f6
{[%clk 0:01:58.5]} 20. Nf3 {[%clk 0:01:34.3]} 20... Nxg3 {[%clk 0:01:54.5]} 21.
hxg3 {[%clk 0:01:33.9]} 21... Qxf3 {[%clk 0:01:54]} 22. e4 {[%clk 0:01:28.8]}
22... Qc3 {[%clk 0:01:49]} 23. Qb4 {[%clk 0:01:23.6]} 23... Rfd8 {[%clk
0:01:44.7]} 24. Qe7 {[%clk 0:01:18.3]} 24... Qxd4 {[%clk 0:01:35]} 25. Qxe6+
{[%clk 0:01:18.2]} 25... Kh8 {[%clk 0:01:34.8]} 26. Rad1 {[%clk 0:01:16.6]}
26... Qc5 {[%clk 0:01:20.7]} 27. Rxd8+ {[%clk 0:01:06]} 27... Rxd8 {[%clk
0:01:21.6]} 28. e5 {[%clk 0:01:05.8]} 28... fxe5 {[%clk 0:01:18.8]} 29. Rxe5
{[%clk 0:01:04.2]} 29... Qxa3 {[%clk 0:01:17.5]} 30. Kg2 {[%clk 0:00:41.4]}
30... h6 {[%clk 0:01:14.1]} 31. Rf5 {[%clk 0:00:32.2]} 31... Qd6 {[%clk
0:01:08.4]} 32. Qe4 {[%clk 0:00:27.3]} 32... Rf8 {[%clk 0:00:45.1]} 33. Rd5
{[%clk 0:00:26.1]} 33... Qc6 {[%clk 0:00:44.2]} 34. f4 {[%clk 0:00:25.2]} 34...
b5 {[%clk 0:00:41.7]} 35. Kh3 {[%clk 0:00:24.1]} 35... b4 {[%clk 0:00:40.5]} 36.
Qxb4 {[%clk 0:00:22.9]} 36... Qxd5 {[%clk 0:00:36.1]} 37. Qxf8+ {[%clk
0:00:22.5]} 37... Kh7 {[%clk 0:00:36.7]} 38. f5 {[%clk 0:00:20.2]} 38... a5
{[%clk 0:00:33.8]} 39. g4 {[%clk 0:00:19.3]} 39... a4 {[%clk 0:00:32.1]} 40. Qe8
{[%clk 0:00:19.5]} 40... Qd3+ {[%clk 0:00:24.4]} 41. Kh4 {[%clk 0:00:17.5]}
41... Qa6 {[%clk 0:00:24.2]} 42. Qe4 {[%clk 0:00:15.1]} 42... Qf6+ {[%clk
0:00:22.6]} 43. Kh3 {[%clk 0:00:13.1]} 43... a3 {[%clk 0:00:22.9]} 44. Qa4
{[%clk 0:00:12.7]} 44... Qc3+ {[%clk 0:00:20.6]} 45. Kh4 {[%clk 0:00:12.3]}
45... Qe1+ {[%clk 0:00:20.6]} 46. Kh3 {[%clk 0:00:11.9]} 46... Qf1+ {[%clk
0:00:18.6]} 47. Kg3 {[%clk 0:00:11.4]} 47... Qe2 {[%clk 0:00:18.2]} 48. Qxa3
{[%clk 0:00:09.8]} 48... Qe5+ {[%clk 0:00:18.1]} 49. Kh3 {[%clk 0:00:08.9]}
49... Qf6 {[%clk 0:00:17.4]} 50. Qf3 {[%clk 0:00:07.9]} 50... Qe5 {[%clk
0:00:17.3]} 51. Qg3 {[%clk 0:00:07.5]} 51... Qf6 {[%clk 0:00:16.8]} 52. Qf3
{[%clk 0:00:07.6]} 52... Qe5 {[%clk 0:00:16.9]} 53. Qg3 {[%clk 0:00:07.7]} 53...
Qf6 {[%clk 0:00:17.1]} 54. Qf3 {[%clk 0:00:08]} 1/2-1/2

[Event "*** Titled Tuesday Blitz"]
[Site "Chess.com"]
[Date "2020.05.12"]
[Round "6"]
[White "realmadridtv"]
[Black "MarcoRiehle"]
[Result "0-1"]
[WhiteElo "2457"]
[BlackElo "2619"]
[TimeControl "180+1"]
[EndTime "11:06:47 PDT"]
[Termination "MarcoRiehle won on time"]

1. d4 {[%clk 0:03:00.9]} 1... d5 {[%clk 0:02:59.3]} 2. c4 {[%clk 0:03:01.6]}
2... e6 {[%clk 0:02:59.1]} 3. g3 {[%clk 0:03:02.2]} 3... Nf6 {[%clk 0:02:58.2]}
4. Bg2 {[%clk 0:03:02.5]} 4... dxc4 {[%clk 0:02:58.1]} 5. Qa4+ {[%clk
0:03:00.5]} 5... c6 {[%clk 0:02:50.2]} 6. Qxc4 {[%clk 0:03:00.2]} 6... b5 {[%clk
0:02:50.2]} 7. Qd3 {[%clk 0:02:50.6]} 7... Bb7 {[%clk 0:02:48.3]} 8. Nf3 {[%clk
0:02:48.6]} 8... a6 {[%clk 0:02:47.6]} 9. O-O {[%clk 0:02:43.1]} 9... Nbd7
{[%clk 0:02:46.9]} 10. Nc3 {[%clk 0:02:34.9]} 10... Be7 {[%clk 0:02:35.3]} 11.
Ne5 {[%clk 0:02:30.4]} 11... Nxe5 {[%clk 0:02:32.9]} 12. dxe5 {[%clk 0:02:30.1]}
12... Qxd3 {[%clk 0:02:33.4]} 13. exd3 {[%clk 0:02:29.6]} 13... Nd7 {[%clk
0:02:29.9]} 14. f4 {[%clk 0:02:23.5]} 14... O-O {[%clk 0:02:28.8]} 15. Be3
{[%clk 0:02:21.6]} 15... Rfd8 {[%clk 0:02:21.8]} 16. Rfd1 {[%clk 0:02:11.6]}
16... Rac8 {[%clk 0:02:16.1]} 17. Kf2 {[%clk 0:02:10.4]} 17... f5 {[%clk
0:02:02.6]} 18. a4 {[%clk 0:02:06.2]} 18... Nc5 {[%clk 0:01:53.9]} 19. axb5
{[%clk 0:01:56.6]} 19... axb5 {[%clk 0:01:52.9]} 20. Ra7 {[%clk 0:01:29.2]}
20... Ra8 {[%clk 0:01:51.5]} 21. Rxb7 {[%clk 0:01:20.5]} 21... Nxb7 {[%clk
0:01:48.9]} 22. Bxc6 {[%clk 0:01:21.1]} 22... Rab8 {[%clk 0:01:24.6]} 23. d4
{[%clk 0:01:11.1]} 23... Na5 {[%clk 0:01:10.3]} 24. Bxb5 {[%clk 0:01:09.9]}
24... Rdc8 {[%clk 0:01:09.3]} 25. Bd7 {[%clk 0:01:02.2]} 25... Rxb2+ {[%clk
0:01:08.4]} 26. Rd2 {[%clk 0:00:57.5]} 26... Rxd2+ {[%clk 0:00:56.4]} 27. Bxd2
{[%clk 0:00:56.8]} 27... Rb8 {[%clk 0:00:56.8]} 28. Bxe6+ {[%clk 0:00:56.2]}
28... Kf8 {[%clk 0:00:56.3]} 29. Ke3 {[%clk 0:00:39.7]} 29... g6 {[%clk
0:00:53.6]} 30. Kd3 {[%clk 0:00:37.3]} 30... Nb3 {[%clk 0:00:48.3]} 31. Be3
{[%clk 0:00:30.9]} 31... Ba3 {[%clk 0:00:30.9]} 32. d5 {[%clk 0:00:21.4]} 32...
Ke7 {[%clk 0:00:30]} 33. Kc4 {[%clk 0:00:18.9]} 33... Rb4+ {[%clk 0:00:26.5]}
34. Kd3 {[%clk 0:00:17.2]} 34... Rb8 {[%clk 0:00:24.8]} 35. Ba7 {[%clk
0:00:13.2]} 35... Rb7 {[%clk 0:00:22.5]} 36. Be3 {[%clk 0:00:13.3]} 36... Bc5
{[%clk 0:00:22.5]} 37. Nd1 {[%clk 0:00:11.1]} 37... Bxe3 {[%clk 0:00:22]} 38.
Nxe3 {[%clk 0:00:12]} 38... Nc5+ {[%clk 0:00:22.2]} 39. Kc4 {[%clk 0:00:11.7]}
39... Nxe6 {[%clk 0:00:23.1]} 40. dxe6 {[%clk 0:00:11.5]} 40... Kxe6 {[%clk
0:00:23.4]} 41. h4 {[%clk 0:00:10.2]} 41... Ra7 {[%clk 0:00:22.2]} 42. g4 {[%clk
0:00:10]} 42... Ra4+ {[%clk 0:00:21.4]} 43. Kd3 {[%clk 0:00:10]} 43... Rxf4
{[%clk 0:00:22.2]} 44. gxf5+ {[%clk 0:00:10.5]} 44... gxf5 {[%clk 0:00:23.1]}
45. Ng2 {[%clk 0:00:11]} 45... Kxe5 {[%clk 0:00:22.6]} 46. Ke3 {[%clk 0:00:04]}
46... Rg4 {[%clk 0:00:21.9]} 47. Kf3 {[%clk 0:00:04.4]} 47... Rxg2 {[%clk
0:00:21.6]} 48. Kxg2 {[%clk 0:00:04.7]} 48... Kf4 {[%clk 0:00:22.5]} 0-1

[Event "*** Titled Tuesday Blitz"]
[Site "Chess.com"]
[Date "2020.05.12"]
[Round "6"]
[White "Kezin_Roman"]
[Black "Micki-taryan"]
[Result "0-1"]
[WhiteElo "2790"]
[BlackElo "3064"]
[TimeControl "180+1"]
[EndTime "11:06:48 PDT"]
[Termination "Micki-taryan won on time"]

1. d4 {[%clk 0:03:00.9]} 1... Nf6 {[%clk 0:03:00]} 2. c4 {[%clk 0:03:01.3]} 2...
e6 {[%clk 0:03:00.3]} 3. g3 {[%clk 0:03:01]} 3... c5 {[%clk 0:03:00.2]} 4. d5
{[%clk 0:03:01.1]} 4... exd5 {[%clk 0:03:01.1]} 5. cxd5 {[%clk 0:03:02]} 5... d6
{[%clk 0:03:01.7]} 6. Nc3 {[%clk 0:03:02.4]} 6... g6 {[%clk 0:03:02.1]} 7. Nf3
{[%clk 0:03:02.9]} 7... Bg7 {[%clk 0:03:02.4]} 8. Bg2 {[%clk 0:03:03.4]} 8...
O-O {[%clk 0:03:01.9]} 9. O-O {[%clk 0:03:03.9]} 9... a6 {[%clk 0:02:58]} 10. a4
{[%clk 0:03:03.5]} 10... Re8 {[%clk 0:02:57.4]} 11. Nd2 {[%clk 0:03:03.6]} 11...
Nbd7 {[%clk 0:02:55.1]} 12. h3 {[%clk 0:03:03.6]} 12... Rb8 {[%clk 0:02:52]} 13.
Nc4 {[%clk 0:03:03.2]} 13... Nb6 {[%clk 0:02:49.4]} 14. Na3 {[%clk 0:03:02.5]}
14... Nbd7 {[%clk 0:02:49.2]} 15. Nc4 {[%clk 0:02:58.7]} 15... Ne5 {[%clk
0:02:49]} 16. Na3 {[%clk 0:02:58.9]} 16... Nh5 {[%clk 0:02:48.9]} 17. e4 {[%clk
0:02:56.8]} 17... Bd7 {[%clk 0:02:43.8]} 18. a5 {[%clk 0:02:56.6]} 18... b5
{[%clk 0:02:43.7]} 19. axb6 {[%clk 0:02:55.4]} 19... Bb5 {[%clk 0:02:44.3]} 20.
g4 {[%clk 0:02:52.9]} 20... Bxf1 {[%clk 0:02:37.2]} 21. Kxf1 {[%clk 0:02:53.8]}
21... Nf6 {[%clk 0:02:37.1]} 22. f4 {[%clk 0:02:54.3]} 22... Ned7 {[%clk
0:02:34.1]} 23. Nc4 {[%clk 0:02:54.6]} 23... Nxb6 {[%clk 0:02:32.7]} 24. Na5
{[%clk 0:02:54.7]} 24... Qc7 {[%clk 0:02:25.2]} 25. Nc6 {[%clk 0:02:49.8]} 25...
Ra8 {[%clk 0:02:25.4]} 26. e5 {[%clk 0:02:44.6]} 26... Nfd7 {[%clk 0:02:21]} 27.
Ne4 {[%clk 0:02:33.5]} 27... Nc8 {[%clk 0:02:01.3]} 28. e6 {[%clk 0:02:11.6]}
28... fxe6 {[%clk 0:01:49.6]} 29. dxe6 {[%clk 0:02:12.5]} 29... Ndb6 {[%clk
0:01:40.5]} 30. f5 {[%clk 0:01:32]} 30... d5 {[%clk 0:01:40.5]} 31. f6 {[%clk
0:00:35.1]} 31... Rxe6 {[%clk 0:01:30.5]} 32. fxg7 {[%clk 0:00:34.6]} 32... dxe4
{[%clk 0:01:07.7]} 33. Na5 {[%clk 0:00:17.4]} 33... Qxg7 {[%clk 0:01:05.1]} 34.
Be3 {[%clk 0:00:16.5]} 34... Ne7 {[%clk 0:01:01.2]} 35. Bxc5 {[%clk 0:00:16.7]}
35... Rf8+ {[%clk 0:01:01.8]} 36. Kg1 {[%clk 0:00:16.8]} 36... Nbd5 {[%clk
0:01:02.2]} 37. Nc4 {[%clk 0:00:13]} 37... Kh8 {[%clk 0:00:58.2]} 38. Ra3 {[%clk
0:00:11.7]} 38... Nf4 {[%clk 0:00:52.8]} 39. Bf1 {[%clk 0:00:11.7]} 39... Nc6
{[%clk 0:00:50]} 40. Bxf8 {[%clk 0:00:10.8]} 40... Qxf8 {[%clk 0:00:49.8]} 41.
Ne3 {[%clk 0:00:09.4]} 41... Rd6 {[%clk 0:00:48.6]} 42. Qa4 {[%clk 0:00:05.9]}
42... Nd4 {[%clk 0:00:48.6]} 43. Qc4 {[%clk 0:00:04.9]} 43... Nf3+ {[%clk
0:00:48.8]} 44. Kh1 {[%clk 0:00:05.2]} 44... Rd4 {[%clk 0:00:40]} 45. Qc3 {[%clk
0:00:04]} 45... Qf6 {[%clk 0:00:38.4]} 46. Rxa6 {[%clk 0:00:03.9]} 46... Qe5
{[%clk 0:00:27.5]} 47. Qc8+ {[%clk 0:00:02.6]} 47... Kg7 {[%clk 0:00:27.8]} 48.
Ra7+ {[%clk 0:00:02.5]} 48... Kh6 {[%clk 0:00:27.7]} 49. Qf8+ {[%clk 0:00:02.8]}
49... Kg5 {[%clk 0:00:28.3]} 50. b4 {[%clk 0:00:01.4]} 50... Ne6 {[%clk
0:00:25.1]} 0-1